Workbook

Sheet INFORME
J2: DEFENSORÍA DEL PUEBLO
J3: INFORME DE EJECUCIÓN PRESUPUESTAL DESAGREGADO ACUMULADO
J4: VIGENCIA ACTUAL
J5: PERÍODO: 01-ENERO-2022 A 31-MARZO-2022
B10: DESCRIPCION | N10: APR. VIGENTE | O10: CDP | P10: APR. DISPONIBLE | Q10: TOTAL CDP MODIFICACION DEP.GSTOS | R10: COMPROMISO | S10: OBLIGACION | T10: ORDEN PAGO | U10: PAGOS | V10: % EJECUCIÓN COMPROMETIDA | W10: %EJECUCIÓN OBLIGADA
B11: A | E11: PRESUPUESTO DE FUNCIONAMIENTO | N11: =+N35+N36+N37 -> 680086695598 | O11: =+O35+O36+O37 -> 5.023267572e+11 | P11: 1.7750433e+11 | Q11: =+Q35 -> 255608440 | R11: 2.209411393e+11 | S11: 8.690529341e+10 | T11: 8.529079069e+10 | U11: 8.45443875e+10 | V11: =R11/N11 -> 0.3248720211 | W11: =S11/N11 -> 0.1277856102
B12: B | E12: SERVICIO DE LA DEUDA PÚBLICA | N12: =+N137 -> 247291740 | O12: =+O137 -> 0 | P12: 247291740 | Q12: 0 | R12: 0 | S12: 0 | T12: 0 | U12: 0 | V12: =R12/N12 -> 0 | W12: =S12/N12 -> 0
B13: C | E13: PRESUPUESTO DE INVERSIÓN UNIDAD 25-02-00 | N13: =+N143+N141+N142 -> 60375679763 | O13: =+O143+O141+O142 -> 39298846706 | P13: 21076833057 | Q13: 0 | R13: 27585880966 | S13: 2718765624 | T13: 2704590166 | U13: 2609613628 | V13: 0.4569038572 | W13: 0.04503080768
B14: A+C | E14: TOTAL PRESUPUESTO UNIDAD 25-02-00 | N14: =+N11+N12+N13 -> 740709667101 | O14: =+O11+O12+O13 -> 5.416256039e+11 | P14: 1.988284548e+11 | Q14: =+Q11+Q12+Q13 -> 255608440 | R14: 2.485270203e+11 | S14: 8.962405903e+10 | T14: 8.799538085e+10 | U14: 8.715400112e+10 | V14: =R14/N14 -> 0.3355255525 | W14: =S14/N14 -> 0.1209975555
B15: C | E15: PRESUPUESTO INVERSIÓN SUBUNIDAD 25-02-00-001 | N15: =+N234 -> 14000000000 | O15: =+O234 -> 8338912095 | P15: 5661087905 | Q15: 0 | R15: 7820258147 | S15: 366847788.1 | T15: 290279786.1 | U15: 290279786.1 | V15: 0.5585898676 | W15: 0.02620341344
B16: A+B+C | E16: TOTAL PRESUPUESTO DESAGREGADO | N16: =+N14+N15 -> 754709667101 | O16: =+O14+O15 -> 5.49964516e+11 | P16: 2.044895427e+11 | Q16: =+Q14+Q15 -> 255608440 | R16: 2.563472784e+11 | S16: 8.999090682e+10 | T16: 8.828566064e+10 | U16: 8.744428091e+10 | V16: 0.3396634356 | W16: 0.1192391071
B17: A+C | E17: APROPIACIÓN BLOQUEADA | N17: 41686726402 | O17: 0 | P17: 0 | Q17: 0 | R17: 0 | S17: 0 | T17: 0 | U17: 0 | V17: =R17/N17 -> 0 | W17: =S17/N17 -> 0
B18: A+B+C | E18: TOTAL PRESUPUESTO DEFENSORÍA DEL PUEBLO | N18: =+N16+N17 -> 796396393503 | O18: =+O16+O17 -> 5.49964516e+11 | P18: 2.044895427e+11 | Q18: =+Q16+Q17 -> 255608440 | R18: 2.563472784e+11 | S18: 8.999090682e+10 | T18: 8.828566064e+10 | U18: 8.744428091e+10 | V18: 0.3218840272 | W18: 0.1129976323
B20: DESCRIPCION | N20: APR. VIGENTE | O20: CDP | P20: APR. DISPONIBLE | Q20: TOTAL CDP MODIFICACION DEP.GSTOS | R20: COMPROMISO | S20: OBLIGACION | T20: ORDEN PAGO | U20: PAGOS | V20: % EJECUCIÓN COMPROMETIDA | W20: %EJECUCIÓN OBLIGADA
B21: A-01 | E21: GASTOS DE PERSONAL | N21: =+N38 -> 237025946000 | O21: =+O38 -> 236845560147 | P21: 0 | Q21: =+Q38 -> 180385853 | R21: 49342763247 | S21: 49340648634 | T21: 49340648634 | U21: 48789341337 | V21: =R21/N21 -> 0.208174523 | W21: =S21/N21 -> 0.2081656016
B22: A-02 | E22: ADQUISICIÓN DE BIENES Y SERVICIOS | N22: =+N65 -> 52344273598 | O22: =+O65 -> 4.594487752e+10 | P22: 6324173491 | Q22: =+Q65 -> 75222587 | R22: 2.839242363e+10 | S22: 3944448086 | T22: 3886642105 | U22: 3755037483 | V22: =R22/N22 -> 0.5424169957 | W22: =S22/N22 -> 0.07535586635
B23: A-03 | E23: TRANSFERENCIAS CORRIENTES | N23: =+N113+N114 -> 388350399000 | O23: =+O113+O114 -> 2.190513195e+11 | P23: 1.692990795e+11 | Q23: 0 | R23: 1.430340177e+11 | S23: 3.344826193e+10 | T23: 3.189156519e+10 | U23: 3.182807392e+10 | V23: 0.3683117567 | W23: 0.08612907832
B24: A-08 | E24: GASTOS POR TRIBUTOS, MULTAS, SANCIONES E INTERESES DE MORA | N24: =+N129+N130 -> 2366077000 | O24: =+O129+O130 -> 485000000 | P24: 1881077000 | Q24: 0 | R24: 171934758 | S24: 171934758 | T24: 171934758 | U24: 171934758 | V24: 0.07266659454 | W24: 0.07266659454
B25: A | E25: TOTAL PRESUPUESTO DE FUNCIONAMIENTO | N25: =SUM(N21:N24) -> 680086695598 | O25: =SUM(O21:O24) -> 5.023267572e+11 | P25: 1.7750433e+11 | Q25: 255608440 | R25: 2.209411393e+11 | S25: 8.690529341e+10 | T25: 8.529079069e+10 | U25: 8.45443875e+10 | V25: =R25/N25 -> 0.3248720211 | W25: =S25/N25 -> 0.1277856102
B26: B | E26: SERVICIO DE LA DEUDA PÚBLICA | N26: =+N12 -> 247291740 | O26: =+O12 -> 0 | P26: 247291740 | Q26: 0 | R26: 0 | S26: 0 | T26: 0 | U26: 0 | V26: =R26/N26 -> 0 | W26: =S26/N26 -> 0
B27: C-2502 C-2599 | E27: INVERSIÓN UNIDAD 25-02-00 | N27: =+N143+N141+N142 -> 60375679763 | O27: =+O143+O141+O142 -> 39298846706 | P27: 21076833057 | Q27: 0 | R27: 27585880966 | S27: 2718765624 | T27: 2704590166 | U27: 2609613628 | V27: 0.4569038572 | W27: 0.04503080768
B28: C-2599 | E28: INVERSIÓN SUBUNIDAD 25-02-00-001 | N28: =+N234 -> 14000000000 | O28: =+O234 -> 8338912095 | P28: 5661087905 | Q28: 0 | R28: 7820258147 | S28: 366847788.1 | T28: 290279786.1 | U28: 290279786.1 | V28: 0.5585898676 | W28: 0.02620341344
B29: C | E29: TOTAL PRESUPUESTO DE INVERSIÓN | N29: =+N27+N28 -> 74375679763 | O29: =+O27+O28 -> 47637758801 | P29: 26737920962 | Q29: =+Q27+Q28 -> 0 | R29: 35406139113 | S29: 3085613412 | T29: 2994869952 | U29: 2899893414 | V29: 0.4760445784 | W29: 0.04148685998
B30: A+B+C | E30: TOTAL EJECUCIÓN PRESUPUESTO DESAGREGADO DEFENSORÍA DEL PUEBLO | N30: =+N25+N26+N29 -> 754709667101 | O30: =+O25+O26+O29 -> 5.49964516e+11 | P30: 2.044895427e+11 | Q30: =+Q25+Q29 -> 255608440 | R30: 2.563472784e+11 | S30: 8.999090682e+10 | T30: 8.828566064e+10 | U30: 8.744428091e+10 | V30: 0.3396634356 | W30: 0.1192391071
B31: A+C | E31: APROPIACIÓN BLOQUEADA (LEVANTAMIENTO PREVIO CONCEPTO DGPPN) | N31: =+N17 -> 41686726402 | O31: =+O17 -> 0 | P31: 0 | Q31: 0 | R31: 0 | S31: 0 | T31: 0 | U31: 0 | V31: =R31/N31 -> 0 | W31: =S31/N31 -> 0
B32: A+B+C | E32: TOTAL PRESUPUESTO DEFENSORÍA DEL PUEBLO | N32: =+N30+N31 -> 796396393503 | O32: =+O30+O31 -> 5.49964516e+11 | P32: 2.044895427e+11 | Q32: 255608440 | R32: 2.563472784e+11 | S32: 8.999090682e+10 | T32: 8.828566064e+10 | U32: 8.744428091e+10 | V32: =R32/N32 -> 0.3218840272 | W32: =S32/N32 -> 0.1129976323
B34: TIPO | C34: CTA | D34: SUBC | E34: OBJG | F34: ORD | G34: SORD | H34: ITEM | I34: S. ITEM | J34: CONCEPTO | K34: FUENTE | L34: SITUACION | M34: REC. | N34: APR. VIGENTE | O34: CDP | P34: APR. DISPONIBLE | Q34: TOTAL CDP MODIFICACION DEP.GSTOS | R34: COMPROMISO | S34: OBLIGACION | T34: ORDEN PAGO | U34: PAGOS | V34: % EJECUCIÓN COMPROMETIDA | W34: %EJECUCIÓN OBLIGADA
B35: A | J35: FUNCIONAMIENTO | K35: Nación | L35: CSF | M35: 10 | N35: =+N38+N65+N113+N129 -> 524311028598 | O35: 4.675484205e+11 | P35: 5.650699969e+10 | Q35: 255608440 | R35: 2.106273918e+11 | S35: 8.502672473e+10 | T35: 8.364604396e+10 | U35: 8.290039077e+10 | V35: =R35/N35 -> 0.4017222228 | W35: =S35/N35 -> 0.1621684842
B36: A | J36: FUNCIONAMIENTO | K36: Nación | L36: SSF | M36: 11 | N36: 1881077000 | O36: 0 | P36: 1881077000 | Q36: 0 | R36: 0 | S36: 0 | T36: 0 | U36: 0 | V36: 0 | W36: 0
B37: A | J37: FUNCIONAMIENTO | K37: Nación | L37: SSF | M37: 16 | N37: 153894590000 | O37: 34778336712 | P37: 119116253288 | Q37: 0 | R37: 10313747488 | S37: 1878568674 | T37: 1644746726 | U37: 1643996726 | V37: 0.06701825898 | W37: 0.01220685324
B38: A | C38: 01 | J38: GASTOS DE PERSONAL | K38: Nación | L38: CSF | M38: 10 | N38: 237025946000 | O38: 236845560147 | P38: 0 | Q38: 180385853 | R38: 49342763247 | S38: 49340648634 | T38: 49340648634 | U38: 48789341337 | V38: 0.208174523 | W38: 0.2081656016
B39: A | C39: 01 | D39: 01 | J39: PLANTA DE PERSONAL PERMANENTE | K39: Nación | L39: CSF | M39: 10 | N39: 237025946000 | O39: 236845560147 | P39: 0 | Q39: 180385853 | R39: 49342763247 | S39: 49340648634 | T39: 49340648634 | U39: 48789341337 | V39: 0.208174523 | W39: 0.2081656016
B40: A | C40: 01 | D40: 01 | E40: 01 | J40: SALARIO | K40: Nación | L40: CSF | M40: 10 | N40: 162055267000 | O40: 162055267000 | P40: 0 | Q40: 0 | R40: 33495124265 | S40: 33493009652 | T40: 33493009652 | U40: 33493009652 | V40: 0.2066895133 | W40: 0.2066764646
B41: A | C41: 01 | D41: 01 | E41: 01 | F41: 001 | J41: FACTORES SALARIALES COMUNES | K41: Nación | L41: CSF | M41: 10 | N41: 162055267000 | O41: 162055267000 | P41: 0 | Q41: 0 | R41: 33495124265 | S41: 33493009652 | T41: 33493009652 | U41: 33493009652 | V41: 0.2066895133 | W41: 0.2066764646
B42: A | C42: 01 | D42: 01 | E42: 01 | F42: 001 | G42: 001 | J42: SUELDO BÁSICO | K42: Nación | L42: CSF | M42: 10 | N42: 125655267000 | O42: 125655267000 | P42: 0 | Q42: 0 | R42: 29701647872 | S42: 29699533259 | T42: 29699533259 | U42: 29699533259 | V42: 0.2363740779 | W42: 0.2363572492
B43: A | C43: 01 | D43: 01 | E43: 01 | F43: 001 | G43: 002 | J43: GASTOS DE REPRESENTACIÓN | K43: Nación | L43: CSF | M43: 10 | N43: 4700000000 | O43: 4700000000 | P43: 0 | Q43: 0 | R43: 1100385766 | S43: 1100385766 | T43: 1100385766 | U43: 1100385766 | V43: 0.2341246311 | W43: 0.2341246311
B44: A | C44: 01 | D44: 01 | E44: 01 | F44: 001 | G44: 006 | J44: PRIMA DE SERVICIO | K44: Nación | L44: CSF | M44: 10 | N44: 6500000000 | O44: 6500000000 | P44: 0 | Q44: 0 | R44: 48604623 | S44: 48604623 | T44: 48604623 | U44: 48604623 | V44: 0.007477634308 | W44: 0.007477634308
B45: A | C45: 01 | D45: 01 | E45: 01 | F45: 001 | G45: 007 | J45: BONIFICACIÓN POR SERVICIOS PRESTADOS | K45: Nación | L45: CSF | M45: 10 | N45: 4500000000 | O45: 4500000000 | P45: 0 | Q45: 0 | R45: 1210895815 | S45: 1210895815 | T45: 1210895815 | U45: 1210895815 | V45: 0.2690879589 | W45: 0.2690879589
B46: A | C46: 01 | D46: 01 | E46: 01 | F46: 001 | G46: 008 | J46: HORAS EXTRAS, DOMINICALES, FESTIVOS Y RECARGOS | K46: Nación | L46: CSF | M46: 10 | N46: 700000000 | O46: 700000000 | P46: 0 | Q46: 0 | R46: 65948070 | S46: 65948070 | T46: 65948070 | U46: 65948070 | V46: 0.09421152857 | W46: 0.09421152857
B47: A | C47: 01 | D47: 01 | E47: 01 | F47: 001 | G47: 009 | J47: PRIMA DE NAVIDAD | K47: Nación | L47: CSF | M47: 10 | N47: 13500000000 | O47: 13500000000 | P47: 0 | Q47: 0 | R47: 11691739 | S47: 11691739 | T47: 11691739 | U47: 11691739 | V47: 0.0008660547407 | W47: 0.0008660547407
B48: A | C48: 01 | D48: 01 | E48: 01 | F48: 001 | G48: 010 | J48: PRIMA DE VACACIONES | K48: Nación | L48: CSF | M48: 10 | N48: 6500000000 | O48: 6500000000 | P48: 0 | Q48: 0 | R48: 1355950380 | S48: 1355950380 | T48: 1355950380 | U48: 1355950380 | V48: 0.2086077508 | W48: 0.2086077508
B49: A | C49: 01 | D49: 01 | E49: 02 | J49: CONTRIBUCIONES INHERENTES A LA NÓMINA | K49: Nación | L49: CSF | M49: 10 | N49: 60258109000 | O49: 60077723147 | P49: 0 | Q49: 180385853 | R49: 12682555142 | S49: 12682555142 | T49: 12682555142 | U49: 12131247845 | V49: 0.2104705135 | W49: 0.2104705135
B50: A | C50: 01 | D50: 01 | E50: 02 | F50: 001 | J50: APORTES A LA SEGURIDAD SOCIAL EN PENSIONES | K50: Nación | L50: CSF | M50: 10 | N50: 16919839573 | O50: 16919839573 | P50: 0 | Q50: 0 | R50: 4333057400 | S50: 4333057400 | T50: 4333057400 | U50: 4333057400 | V50: 0.256093291 | W50: 0.256093291
B51: A | C51: 01 | D51: 01 | E51: 02 | F51: 002 | J51: APORTES A LA SEGURIDAD SOCIAL EN SALUD | K51: Nación | L51: CSF | M51: 10 | N51: 12099881905 | O51: 12099881905 | P51: 0 | Q51: 0 | R51: 3070425400 | S51: 3070425400 | T51: 3070425400 | U51: 3070425400 | V51: 0.2537566419 | W51: 0.2537566419
B52: A | C52: 01 | D52: 01 | E52: 02 | F52: 003 | J52: AUXILIO DE CESANTÍAS | K52: Nación | L52: CSF | M52: 10 | N52: 14158100347 | O52: 14158100347 | P52: 0 | Q52: 0 | R52: 1702218142 | S52: 1702218142 | T52: 1702218142 | U52: 1150910845 | V52: 0.1202292751 | W52: 0.1202292751
B53: A | C53: 01 | D53: 01 | E53: 02 | F53: 004 | J53: APORTES A CAJAS DE COMPENSACIÓN FAMILIAR | K53: Nación | L53: CSF | M53: 10 | N53: 6799958417 | O53: 6799958417 | P53: 0 | Q53: 0 | R53: 1434649500 | S53: 1434649500 | T53: 1434649500 | U53: 1434649500 | V53: 0.2109791578 | W53: 0.2109791578
B54: A | C54: 01 | D54: 01 | E54: 02 | F54: 005 | J54: APORTES GENERALES AL SISTEMA DE RIESGOS LABORALES | K54: Nación | L54: CSF | M54: 10 | N54: 1699995017 | O54: 1699995017 | P54: 0 | Q54: 0 | R54: 347907800 | S54: 347907800 | T54: 347907800 | U54: 347907800 | V54: 0.2046522469 | W54: 0.2046522469
B55: A | C55: 01 | D55: 01 | E55: 02 | F55: 006 | J55: APORTES AL ICBF | K55: Nación | L55: CSF | M55: 10 | N55: 4999968785 | O55: 4999968785 | P55: 0 | Q55: 0 | R55: 1076103300 | S55: 1076103300 | T55: 1076103300 | U55: 1076103300 | V55: 0.2152220036 | W55: 0.2152220036
B56: A | C56: 01 | D56: 01 | E56: 02 | F56: 007 | J56: APORTES AL SENA | K56: Nación | L56: CSF | M56: 10 | N56: 849994769 | O56: 849994769 | P56: 0 | Q56: 0 | R56: 179618400 | S56: 179618400 | T56: 179618400 | U56: 179618400 | V56: 0.2113170652 | W56: 0.2113170652
B57: A | C57: 01 | D57: 01 | E57: 02 | F57: 008 | J57: APORTES A LA ESAP | K57: Nación | L57: CSF | M57: 10 | N57: 849994769 | O57: 849994769 | P57: 0 | Q57: 0 | R57: 179618400 | S57: 179618400 | T57: 179618400 | U57: 179618400 | V57: 0.2113170652 | W57: 0.2113170652
B58: A | C58: 01 | D58: 01 | E58: 02 | F58: 009 | J58: APORTES A ESCUELAS INDUSTRIALES E INSTITUTOS TÉCNICOS | K58: Nación | L58: CSF | M58: 10 | N58: 1699989565 | O58: 1699989565 | P58: 0 | Q58: 0 | R58: 358956800 | S58: 358956800 | T58: 358956800 | U58: 358956800 | V58: 0.2111523549 | W58: 0.2111523549
B59: A | C59: 01 | D59: 01 | E59: 03 | J59: REMUNERACIONES NO CONSTITUTIVAS DE FACTOR SALARIAL | K59: Nación | L59: CSF | M59: 10 | N59: 14712570000 | O59: 14712570000 | P59: 0 | Q59: 0 | R59: 3165083840 | S59: 3165083840 | T59: 3165083840 | U59: 3165083840 | V59: 0.2151278696 | W59: 0.2151278696
B60: A | C60: 01 | D60: 01 | E60: 03 | F60: 001 | J60: PRESTACIONES SOCIALES SEGÚN DEFINICIÓN LEGAL | K60: Nación | L60: CSF | M60: 10 | N60: 9412570000 | O60: 9412570000 | P60: 0 | Q60: 0 | R60: 1990502468 | S60: 1990502468 | T60: 1990502468 | U60: 1990502468 | V60: 0.2114727931 | W60: 0.2114727931
B61: A | C61: 01 | D61: 01 | E61: 03 | F61: 001 | G61: 001 | J61: VACACIONES | K61: Nación | L61: CSF | M61: 10 | N61: 8602570000 | O61: 8602570000 | P61: 0 | Q61: 0 | R61: 1837607911 | S61: 1837607911 | T61: 1837607911 | U61: 1837607911 | V61: 0.2136115034 | W61: 0.2136115034
B62: A | C62: 01 | D62: 01 | E62: 03 | F62: 001 | G62: 002 | J62: INDEMNIZACIÓN POR VACACIONES | K62: Nación | L62: CSF | M62: 10 | N62: 810000000 | O62: 810000000 | P62: 0 | Q62: 0 | R62: 152894557 | S62: 152894557 | T62: 152894557 | U62: 152894557 | V62: 0.1887587123 | W62: 0.1887587123
B63: A | C63: 01 | D63: 01 | E63: 03 | F63: 002 | J63: PRIMA TÉCNICA NO SALARIAL | K63: Nación | L63: CSF | M63: 10 | N63: 2200000000 | O63: 2200000000 | P63: 0 | Q63: 0 | R63: 467726749 | S63: 467726749 | T63: 467726749 | U63: 467726749 | V63: 0.2126030677 | W63: 0.2126030677
B64: A | C64: 01 | D64: 01 | E64: 03 | F64: 082 | J64: PRIMA ESPECIAL DE SERVICIOS | K64: Nación | L64: CSF | M64: 10 | N64: 3100000000 | O64: 3100000000 | P64: 0 | R64: 706854623 | S64: 706854623 | T64: 706854623 | U64: 706854623 | V64: 0.2280176203 | W64: 0.2280176203
B65: A | C65: 02 | J65: ADQUISICIÓN DE BIENES Y SERVICIOS | K65: Nación | L65: CSF | M65: 10 | N65: =+N66+N72+Q65 -> 52344273598 | O65: 4.594487752e+10 | P65: 6324173491 | Q65: 75222587 | R65: 2.839242363e+10 | S65: 3944448086 | T65: 3886642105 | U65: 3755037483 | V65: 0.5424169957 | W65: 0.07535586635
B66: A | C66: 02 | D66: 01 | J66: ADQUISICIÓN DE ACTIVOS NO FINANCIEROS | K66: Nación | L66: CSF | M66: 10 | N66: 920000000 | O66: 920000000 | P66: 0 | R66: 120000000 | S66: 0 | T66: 0 | U66: 0 | V66: 0.1304347826 | W66: 0
B67: A | C67: 02 | D67: 01 | E67: 01 | J67: ACTIVOS FIJOS | K67: Nación | L67: CSF | M67: 10 | N67: 920000000 | O67: 920000000 | P67: 0 | R67: 120000000 | S67: 0 | T67: 0 | U67: 0 | V67: 0.1304347826 | W67: 0
B68: A | C68: 02 | D68: 01 | E68: 01 | F68: 004 | J68: MAQUINARIA Y EQUIPO | K68: Nación | L68: CSF | M68: 10 | N68: 800000000 | O68: 800000000 | P68: 0 | R68: 0 | S68: 0 | T68: 0 | U68: 0 | V68: 0 | W68: 0
B69: A | C69: 02 | D69: 01 | E69: 01 | F69: 004 | G69: 009 | J69: EQUIPO DE TRANSPORTE | K69: Nación | L69: CSF | M69: 10 | N69: 800000000 | O69: 800000000 | P69: 0 | R69: 0 | S69: 0 | T69: 0 | U69: 0 | V69: 0 | W69: 0
B70: A | C70: 02 | D70: 01 | E70: 01 | F70: 006 | J70: OTROS ACTIVOS FIJOS | K70: Nación | L70: CSF | M70: 10 | N70: 120000000 | O70: 120000000 | P70: 0 | R70: 120000000 | S70: 0 | T70: 0 | U70: 0 | V70: 1 | W70: 0
B71: A | C71: 02 | D71: 01 | E71: 01 | F71: 006 | G71: 002 | J71: PRODUCTOS DE LA PROPIEDAD INTELECTUAL | K71: Nación | L71: CSF | M71: 10 | N71: 120000000 | O71: 120000000 | P71: 0 | R71: 120000000 | S71: 0 | T71: 0 | U71: 0 | V71: 1 | W71: 0
B72: A | C72: 02 | D72: 02 | J72: ADQUISICIONES DIFERENTES DE ACTIVOS | K72: Nación | L72: CSF | M72: 10 | N72: 51349051011 | O72: 4.502487752e+10 | P72: 6324173491 | R72: 2.827242363e+10 | S72: 3944448086 | T72: 3886642105 | U72: 3755037483 | V72: 0.550592914 | W72: 0.07681637748
B73: A | C73: 02 | D73: 02 | E73: 01 | J73: MATERIALES Y SUMINISTROS | K73: Nación | L73: CSF | M73: 10 | N73: 3771955057 | O73: 3347459989 | P73: 424495068 | Q73: 0 | R73: 2484671087 | S73: 2000000 | T73: 2000000 | U73: 2000000 | V73: 0.6587223469 | W73: 0.0005302290112
B74: A | C74: 02 | D74: 02 | E74: 01 | F74: 002 | J74: PRODUCTOS ALIMENTICIOS, BEBIDAS Y TABACO; TEXTILES, PRENDAS DE VESTIR Y PRODUCTOS DE CUERO | K74: Nación | L74: CSF | M74: 10 | N74: 141860000 | O74: 65390700 | P74: 76469300 | Q74: 0 | R74: 0 | S74: 0 | T74: 0 | U74: 0 | V74: 0 | W74: 0
B75: A | C75: 02 | D75: 02 | E75: 01 | F75: 002 | G75: 003 | J75: PRODUCTOS DE MOLINERÍA, ALMIDONES Y PRODUCTOS DERIVADOS DEL ALMIDÓN; OTROS PRODUCTOS ALIMENTICIOS | K75: Nación | L75: CSF | M75: 10 | N75: 60000000 | O75: 0 | P75: 60000000 | Q75: 0 | R75: 0 | S75: 0 | T75: 0 | U75: 0 | V75: 0 | W75: 0
B76: A | C76: 02 | D76: 02 | E76: 01 | F76: 002 | G76: 007 | J76: ARTÍCULOS TEXTILES (EXCEPTO PRENDAS DE VESTIR) | K76: Nación | L76: CSF | M76: 10 | N76: 390700 | O76: 390700 | P76: 0 | Q76: 0 | R76: 0 | S76: 0 | T76: 0 | U76: 0 | V76: 0 | W76: 0
B77: A | C77: 02 | D77: 02 | E77: 01 | F77: 002 | G77: 008 | J77: DOTACIÓN (PRENDAS DE VESTIR Y CALZADO) | K77: Nación | L77: CSF | M77: 10 | N77: 81469300 | O77: 65000000 | P77: 16469300 | Q77: 0 | R77: 0 | S77: 0 | T77: 0 | U77: 0 | V77: 0 | W77: 0
B78: A | C78: 02 | D78: 02 | E78: 01 | F78: 003 | J78: OTROS BIENES TRANSPORTABLES (EXCEPTO PRODUCTOS METÁLICOS, MAQUINARIA Y EQUIPO) | K78: Nación | L78: CSF | M78: 10 | N78: 687995000 | O78: 516464232 | P78: 171530768 | Q78: 0 | R78: 144748500 | S78: 2000000 | T78: 2000000 | U78: 2000000 | V78: 0.2103917906 | W78: 0.002906997871
B79: A | C79: 02 | D79: 02 | E79: 01 | F79: 003 | G79: 002 | J79: PASTA O PULPA, PAPEL Y PRODUCTOS DE PAPEL; IMPRESOS Y ARTÍCULOS RELACIONADOS | K79: Nación | L79: CSF | M79: 10 | N79: 205750000 | O79: 136791700 | P79: 68958300 | Q79: 0 | R79: 15750000 | S79: 750000 | T79: 750000 | U79: 750000 | V79: 0.07654921021 | W79: 0.003645200486
B80: A | C80: 02 | D80: 02 | E80: 01 | F80: 003 | G80: 003 | J80: PRODUCTOS DE HORNOS DE COQUE; PRODUCTOS DE REFINACIÓN DE PETRÓLEO Y COMBUSTIBLE NUCLEAR | K80: Nación | L80: CSF | M80: 10 | N80: 276350000 | O80: 276350000 | P80: 0 | R80: 100350000 | S80: 350000 | T80: 350000 | U80: 350000 | V80: 0.3631264701 | W80: 0.001266509861
B81: A | C81: 02 | D81: 02 | E81: 01 | F81: 003 | G81: 005 | J81: OTROS PRODUCTOS QUÍMICOS; FIBRAS ARTIFICIALES (O FIBRAS INDUSTRIALES HECHAS POR EL HOMBRE) | K81: Nación | L81: CSF | M81: 10 | N81: 900000 | O81: 900000 | P81: 0 | R81: 900000 | S81: 900000 | T81: 900000 | U81: 900000 | V81: 1 | W81: 1
B82: A | C82: 02 | D82: 02 | E82: 01 | F82: 003 | G82: 006 | J82: PRODUCTOS DE CAUCHO Y PLÁSTICO | K82: Nación | L82: CSF | M82: 10 | N82: 1140000 | O82: 1140000 | P82: 0 | Q82: 0 | R82: 0 | S82: 0 | T82: 0 | U82: 0 | V82: 0 | W82: 0
B83: A | C83: 02 | D83: 02 | E83: 01 | F83: 003 | G83: 008 | J83: OTROS BIENES TRANSPORTABLES N.C.P. | K83: Nación | L83: CSF | M83: 10 | N83: 203855000 | O83: 101282532 | P83: 102572468 | Q83: 0 | R83: 27748500 | S83: 0 | T83: 0 | U83: 0 | V83: 0.1361188099 | W83: 0
B84: A | C84: 02 | D84: 02 | E84: 01 | F84: 004 | J84: PRODUCTOS METÁLICOS Y PAQUETES DE SOFTWARE | K84: Nación | L84: CSF | M84: 10 | N84: 2942100057 | O84: 2765605057 | P84: 176495000 | Q84: 0 | R84: 2339922587 | S84: 0 | T84: 0 | U84: 0 | V84: 0.7953239326 | W84: 0
B85: A | C85: 02 | D85: 02 | E85: 01 | F85: 004 | G85: 004 | J85: MAQUINARIA PARA USOS ESPECIALES | K85: Nación | L85: CSF | M85: 10 | N85: 26145000 | O85: 0 | P85: 26145000 | Q85: 0 | R85: 0 | S85: 0 | T85: 0 | U85: 0 | V85: 0 | W85: 0
B86: A | C86: 02 | D86: 02 | E86: 01 | F86: 004 | G86: 005 | J86: MAQUINARIA DE OFICINA, CONTABILIDAD E INFORMÁTICA | K86: Nación | L86: CSF | M86: 10 | N86: 2750000 | O86: 0 | P86: 2750000 | Q86: 0 | R86: 0 | S86: 0 | T86: 0 | U86: 0 | V86: 0 | W86: 0
B87: A | C87: 02 | D87: 02 | E87: 01 | F87: 004 | G87: 006 | J87: MAQUINARIA Y APARATOS ELÉCTRICOS | K87: Nación | L87: CSF | M87: 10 | N87: 2000000 | O87: 0 | P87: 2000000 | Q87: 0 | R87: 0 | S87: 0 | T87: 0 | U87: 0 | V87: 0 | W87: 0
B88: A | C88: 02 | D88: 02 | E88: 01 | F88: 004 | G88: 007 | J88: EQUIPO Y APARATOS DE RADIO, TELEVISIÓN Y COMUNICACIONES | K88: Nación | L88: CSF | M88: 10 | N88: 2911205057 | O88: 2765605057 | P88: 145600000 | Q88: 0 | R88: 2339922587 | S88: 0 | T88: 0 | U88: 0 | V88: 0.8037642631 | W88: 0
B89: A | C89: 02 | D89: 02 | E89: 02 | J89: ADQUISICIÓN DE SERVICIOS | K89: Nación | L89: CSF | M89: 10 | N89: 47577095954 | O89: 4.167741753e+10 | P89: 5899678423 | Q89: 0 | R89: 2.578775254e+10 | S89: 3942448086 | T89: 3884642105 | U89: 3753037483 | V89: 0.5420203151 | W89: 0.0828644121
B90: A | C90: 02 | D90: 02 | E90: 02 | F90: 005 | J90: SERVICIOS DE LA CONSTRUCCIÓN | K90: Nación | L90: CSF | M90: 10 | N90: 10000264 | O90: 10000264 | P90: 0 | Q90: 0 | R90: 10000264 | S90: 10000264 | T90: 10000264 | U90: 10000264 | V90: 1 | W90: 1
B91: A | C91: 02 | D91: 02 | E91: 02 | F91: 005 | G91: 004 | J91: SERVICIOS DE CONSTRUCCIÓN | K91: Nación | L91: CSF | M91: 10 | N91: 10000264 | O91: 10000264 | P91: 0 | Q91: 0 | R91: 10000264 | S91: 10000264 | T91: 10000264 | U91: 10000264 | V91: 1 | W91: 1
B92: A | C92: 02 | D92: 02 | E92: 02 | F92: 006 | J92: SERVICIOS DE ALOJAMIENTO; SERVICIOS DE SUMINISTRO DE COMIDAS Y BEBIDAS; SERVICIOS DE TRANSPORTE; Y SERVICIOS DE DISTRIBUCIÓN DE ELECTRICIDAD, GAS Y AGUA | K92: Nación | L92: CSF | M92: 10 | N92: 5748070620 | O92: 3252710576 | P92: 2495360044 | Q92: 0 | R92: 774346540 | S92: 444803738 | T92: 443927858 | U92: 429780850 | V92: 0.1347141661 | W92: 0.0773831373
B93: A | C93: 02 | D93: 02 | E93: 02 | F93: 006 | G93: 003 | J93: ALOJAMIENTO; SERVICIOS DE SUMINISTROS DE COMIDAS Y BEBIDAS | K93: Nación | L93: CSF | M93: 10 | N93: 500550620 | O93: 280550620 | P93: 220000000 | Q93: 0 | R93: 146561993 | S93: 85184053 | T93: 85184053 | U93: 84168723 | V93: 0.2928015412 | W93: 0.1701806962
B94: A | C94: 02 | D94: 02 | E94: 02 | F94: 006 | G94: 004 | J94: SERVICIOS DE TRANSPORTE DE PASAJEROS | K94: Nación | L94: CSF | M94: 10 | N94: 2058920000 | O94: 2022920000 | P94: 36000000 | Q94: 0 | R94: 97077000 | S94: 37386498 | T94: 37306498 | U94: 36870498 | V94: 0.04714947642 | W94: 0.01815830533
B95: A | C95: 02 | D95: 02 | E95: 02 | F95: 006 | G95: 007 | J95: SERVICIOS DE APOYO AL TRANSPORTE | K95: Nación | L95: CSF | M95: 10 | N95: 140000000 | O95: 102000000 | P95: 38000000 | Q95: 0 | R95: 62500000 | S95: 21688681 | T95: 20892801 | U95: 20792801 | V95: 0.4464285714 | W95: 0.15491915
B96: A | C96: 02 | D96: 02 | E96: 02 | F96: 006 | G96: 008 | J96: SERVICIOS POSTALES Y DE MENSAJERÍA | K96: Nación | L96: CSF | M96: 10 | N96: 1733000000 | O96: 231639956 | P96: 1501360044 | Q96: 0 | R96: 231639956 | S96: 64038123 | T96: 64038123 | U96: 64038123 | V96: 0.1336641408 | W96: 0.03695217715
B97: A | C97: 02 | D97: 02 | E97: 02 | F97: 006 | G97: 009 | J97: SERVICIOS DE DISTRIBUCIÓN DE ELECTRICIDAD, GAS Y AGUA (POR CUENTA PROPIA) | K97: Nación | L97: CSF | M97: 10 | N97: 1315600000 | O97: 615600000 | P97: 700000000 | Q97: 0 | R97: 236567591 | S97: 236506383 | T97: 236506383 | U97: 223910705 | V97: 0.1798172628 | W97: 0.1797707381
B98: A | C98: 02 | D98: 02 | E98: 02 | F98: 007 | J98: SERVICIOS FINANCIEROS Y SERVICIOS CONEXOS, SERVICIOS INMOBILIARIOS Y SERVICIOS DE LEASING | K98: Nación | L98: CSF | M98: 10 | N98: 2900507314 | O98: 1888688237 | P98: 1011819077 | Q98: 0 | R98: 1632370291 | S98: 538108753.3 | T98: 487924391.7 | U98: 487284272.7 | V98: 0.5627878555 | W98: 0.185522288
B99: A | C99: 02 | D99: 02 | E99: 02 | F99: 007 | G99: 001 | J99: SERVICIOS FINANCIEROS Y SERVICIOS CONEXOS | K99: Nación | L99: CSF | M99: 10 | N99: 275000000 | O99: 257913616 | P99: 17086384 | Q99: 0 | R99: 257913616 | S99: 0 | T99: 0 | U99: 0 | V99: =R99/N99 -> 0.9378676945 | W99: =S99/N99 -> 0
B100: A | C100: 02 | D100: 02 | E100: 02 | F100: 007 | G100: 002 | J100: SERVICIOS INMOBILIARIOS | K100: Nación | L100: CSF | M100: 10 | N100: 2197407314 | O100: 1266932202 | P100: 930475111.8 | Q100: 0 | R100: 1010614256 | S100: 538108753.3 | T100: 487924391.7 | U100: 487284272.7 | V100: 0.45991212 | W100: 0.2448834815
B101: A | C101: 02 | D101: 02 | E101: 02 | F101: 007 | G101: 003 | J101: SERVICIOS DE ARRENDAMIENTO O ALQUILER SIN OPERARIO | K101: Nación | L101: CSF | M101: 10 | N101: 428100000 | O101: 363842419 | P101: 64257581 | Q101: 0 | R101: 363842419 | S101: 0 | T101: 0 | U101: 0 | V101: 0.8499005349 | W101: 0
B102: A | C102: 02 | D102: 02 | E102: 02 | F102: 008 | J102: SERVICIOS PRESTADOS A LAS EMPRESAS Y SERVICIOS DE PRODUCCIÓN | K102: Nación | L102: CSF | M102: 10 | N102: 30913964856 | O102: 30272221865 | P102: 641742991 | Q102: 0 | R102: 17693292187 | S102: 2386500759 | T102: 2382706071 | U102: 2355083521 | V102: 0.5723397911 | W102: 0.07719814558
B103: A | C103: 02 | D103: 02 | E103: 02 | F103: 008 | G103: 002 | J103: SERVICIOS JURÍDICOS Y CONTABLES | K103: Nación | L103: CSF | M103: 10 | N103: 7635577413 | O103: 7515862500 | P103: 119714913 | Q103: 0 | R103: 6177446666 | S103: 836913326.7 | T103: 836913326.7 | U103: 818073326.7 | V103: 0.8090346456 | W103: 0.1096070777
B104: A | C104: 02 | D104: 02 | E104: 02 | F104: 008 | G104: 003 | J104: OTROS SERVICIOS PROFESIONALES, CIENTÍFICOS Y TÉCNICOS | K104: Nación | L104: CSF | M104: 10 | N104: 8660161359 | O104: 8626700000 | P104: 33461359 | Q104: 0 | R104: 6178283328 | S104: 654906663.7 | T104: 651756663.7 | U104: 643656663.7 | V104: 0.7134143432 | W104: 0.075622917
B105: A | C105: 02 | D105: 02 | E105: 02 | F105: 008 | G105: 004 | J105: SERVICIOS DE TELECOMUNICACIONES, TRANSMISIÓN Y SUMINISTRO DE INFORMACIÓN | K105: Nación | L105: CSF | M105: 10 | N105: 3605750000 | O105: 3603714315 | P105: 2035685 | Q105: 0 | R105: 2154679866 | S105: 531620441 | T105: 531620441 | U105: 530937891 | V105: 0.5975677365 | W105: 0.1474368553
B106: A | C106: 02 | D106: 02 | E106: 02 | F106: 008 | G106: 005 | J106: SERVICIOS DE SOPORTE | K106: Nación | L106: CSF | M106: 10 | N106: 9145774868 | O106: 9145743834 | P106: 31034 | Q106: 0 | R106: 3002553713 | S106: 235872043 | T106: 235227355 | U106: 235227355 | V106: 0.3282995434 | W106: 0.02579027435
B107: A | C107: 02 | D107: 02 | E107: 02 | F107: 008 | G107: 007 | J107: SERVICIOS DE MANTENIMIENTO, REPARACIÓN E INSTALACIÓN (EXCEPTO SERVICIOS DE CONSTRUCCIÓN) | K107: Nación | L107: CSF | M107: 10 | N107: 1866701216 | O107: 1380201216 | P107: 486500000 | Q107: 0 | R107: 180328614 | S107: 127188285 | T107: 127188285 | U107: 127188285 | V107: 0.09660282666 | W107: 0.06813532016
B108: A | C108: 02 | D108: 02 | E108: 02 | F108: 009 | J108: SERVICIOS PARA LA COMUNIDAD, SOCIALES Y PERSONALES | K108: Nación | L108: CSF | M108: 10 | N108: 6466552900 | O108: 4964796589 | P108: 1501756311 | Q108: 0 | R108: 4803686769 | S108: 118495568 | T108: 118495568 | U108: 54236942 | V108: 0.742851229 | W108: 0.01832437928
B109: A | C109: 02 | D109: 02 | E109: 02 | F109: 009 | G109: 003 | J109: SERVICIOS PARA EL CUIDADO DE LA SALUD HUMANA Y SERVICIOS SOCIALES | K109: Nación | L109: CSF | M109: 10 | N109: 350000000 | O109: 105243689 | P109: 244756311 | Q109: 0 | R109: 105243689 | S109: 0 | T109: 0 | U109: 0 | V109: 0.3006962543 | W109: 0
B110: A | C110: 02 | D110: 02 | E110: 02 | F110: 009 | G110: 004 | J110: SERVICIOS DE ALCANTARILLADO, RECOLECCIÓN, TRATAMIENTO Y DISPOSICIÓN DE DESECHOS Y OTROS SERVICIOS DE SANEAMIENTO AMBIENTAL | K110: Nación | L110: CSF | M110: 10 | N110: 312355000 | O110: 212355000 | P110: 100000000 | Q110: 0 | R110: 51245180 | S110: 51195608 | T110: 51195608 | U110: 50539042 | V110: 0.1640607002 | W110: 0.1639019961
B111: A | C111: 02 | D111: 02 | E111: 02 | F111: 009 | G111: 007 | J111: OTROS SERVICIOS | K111: Nación | L111: CSF | M111: 10 | N111: 5804197900 | O111: 4647197900 | P111: 1157000000 | Q111: 0 | R111: 4647197900 | S111: 67299960 | T111: 67299960 | U111: 3697900 | V111: 0.8006615178 | W111: 0.01159504916
B112: A | C112: 02 | D112: 02 | E112: 02 | F112: 010 | J112: VIÁTICOS DE LOS FUNCIONARIOS EN COMISIÓN | K112: Nación | L112: CSF | M112: 10 | N112: 1538000000 | O112: 1289000000 | P112: 249000000 | Q112: 0 | R112: 874056491 | S112: 444539003 | T112: 441587952 | U112: 416651633 | V112: 0.5683072113 | W112: 0.2890370631
B113: A | C113: 03 | J113: TRANSFERENCIAS CORRIENTES | K113: Nación | L113: CSF | M113: 10 | N113: 234455809000 | O113: 1.842729828e+11 | P113: 5.01828262e+10 | Q113: 0 | R113: 1.327202702e+11 | S113: 3.156969326e+10 | T113: 3.024681846e+10 | U113: 3.018407719e+10 | V113: 0.5660779776 | W113: 0.1346509323
B114: A | C114: 03 | J114: TRANSFERENCIAS CORRIENTES | K114: Nación | L114: SSF | M114: 16 | N114: 153894590000 | O114: 34778336712 | P114: 119116253288 | Q114: 0 | R114: 10313747488 | S114: 1878568674 | T114: 1644746726 | U114: 1643996726 | V114: 0.06701825898 | W114: 0.01220685324
B115: A | C115: 03 | D115: 03 | J115: A ENTIDADES DEL GOBIERNO | K115: Nación | L115: CSF | M115: 10 | N115: 232805124000 | O115: 1.826222978e+11 | P115: 5.01828262e+10 | Q115: 0 | R115: 1.323380638e+11 | S115: 3.118748688e+10 | T115: 2.986461208e+10 | U115: 2.980187081e+10 | V115: 0.5684499616 | W115: 0.1339639194
B116: A | C116: 03 | D116: 03 | J116: A ENTIDADES DEL GOBIERNO | K116: Nación | L116: SSF | M116: 16 | N116: 153894590000 | O116: 34778336712 | P116: 119116253288 | Q116: 0 | R116: 10313747488 | S116: 1878568674 | T116: 1644746726 | U116: 1643996726 | V116: 0.06701825898 | W116: 0.01220685324
B117: A | C117: 03 | D117: 03 | E117: 01 | J117: A ÓRGANOS DEL PGN | K117: Nación | L117: CSF | M117: 10 | N117: 232805124000 | O117: 1.826222978e+11 | P117: 5.01828262e+10 | Q117: 0 | R117: 1.323380638e+11 | S117: 3.118748688e+10 | T117: 2.986461208e+10 | U117: 2.980187081e+10 | V117: 0.5684499616 | W117: 0.1339639194
B118: A | C118: 03 | D118: 03 | E118: 01 | J118: A ÓRGANOS DEL PGN | K118: Nación | L118: SSF | M118: 16 | N118: 153894590000 | O118: 34778336712 | P118: 119116253288 | Q118: 0 | R118: 10313747488 | S118: 1878568674 | T118: 1644746726 | U118: 1643996726 | V118: 0.06701825898 | W118: 0.01220685324
B119: A | C119: 03 | D119: 03 | E119: 01 | F119: 007 | J119: DEFENSORÍA PÚBLICA (LEY 24 DE 1992) | K119: Nación | L119: CSF | M119: 10 | N119: 232478124000 | O119: 1.822953677e+11 | P119: 5.018275627e+10 | Q119: 0 | R119: 1.321241401e+11 | S119: 3.117027869e+10 | T119: 2.98474039e+10 | U119: 2.978466263e+10 | V119: 0.5683293458 | W119: 0.1340783303
B120: A | C120: 03 | D120: 03 | E120: 01 | F120: 008 | J120: FONDO PARA LA DEFENSA DE LOS DERECHOS E INTERESES COLECTIVOS -LEY 472 DE 1998. | K120: Nación | L120: SSF | M120: 16 | N120: 153325000000 | O120: 34778336712 | P120: 118546663288 | Q120: 0 | R120: 10313747488 | S120: 1878568674 | T120: 1644746726 | U120: 1643996726 | V120: 0.0672672264 | W120: 0.01225220071
B121: A | C121: 03 | D121: 03 | E121: 01 | F121: 061 | J121: FONDO ESPECIAL COMISIÓN NACIONAL DE BÚSQUEDA (ART. 18 LEY 971 DE 2005) | K121: Nación | L121: SSF | M121: 16 | N121: 569590000 | O121: 0 | P121: 569590000 | Q121: 0 | R121: 0 | S121: 0 | T121: 0 | U121: 0 | V121: 0 | W121: 0
B122: A | C122: 03 | D122: 03 | E122: 01 | F122: 068 | J122: COMISIÓN DE BÚSQUEDA DE PERSONAS DESAPARECIDAS LEY 589 DE 2000 | K122: Nación | L122: CSF | M122: 10 | N122: 327000000 | O122: 326930078 | P122: 69922 | Q122: 0 | R122: 213923677 | S122: 17208185 | T122: 17208185 | U122: 17208185 | V122: 0.6542008471 | W122: 0.05262441896
B123: A | C123: 03 | D123: 03 | E123: 01 | F123: 999 | J123: OTRAS TRANSFERENCIAS - DISTRIBUCIÓN PREVIO CONCEPTO DGPPN | K123: Nación | L123: CSF | M123: 10 | N123: 0 | O123: 0 | P123: 0 | Q123: 0 | R123: 0 | S123: 0 | T123: 0 | U123: 0 | V123: 0 | W123: 0
B124: A | C124: 03 | D124: 04 | J124: PRESTACIONES PARA CUBRIR RIESGOS SOCIALES | K124: Nación | L124: CSF | M124: 10 | N124: 1650685000 | O124: 1650685000 | P124: 0 | Q124: 0 | R124: 382206380 | S124: 382206380 | T124: 382206380 | U124: 382206380 | V124: 0.2315441044 | W124: 0.2315441044
B125: A | C125: 03 | D125: 04 | E125: 02 | J125: PRESTACIONES SOCIALES RELACIONADAS CON EL EMPLEO | K125: Nación | L125: CSF | M125: 10 | N125: 1650685000 | O125: 1650685000 | P125: 0 | Q125: 0 | R125: 382206380 | S125: 382206380 | T125: 382206380 | U125: 382206380 | V125: 0.2315441044 | W125: 0.2315441044
B126: A | C126: 03 | D126: 04 | E126: 02 | F126: 012 | J126: INCAPACIDADES Y LICENCIAS DE MATERNIDAD Y PATERNIDAD (NO DE PENSIONES) | K126: Nación | L126: CSF | M126: 10 | N126: 1650685000 | O126: 1650685000 | P126: 0 | Q126: 0 | R126: 382206380 | S126: 382206380 | T126: 382206380 | U126: 382206380 | V126: 0.2315441044 | W126: 0.2315441044
B127: A | C127: 03 | D127: 04 | E127: 02 | F127: 012 | G127: 001 | J127: INCAPACIDADES (NO DE PENSIONES) | K127: Nación | L127: CSF | M127: 10 | N127: 850685000 | O127: 850685000 | P127: 0 | Q127: 0 | R127: 233068321 | S127: 233068321 | T127: 233068321 | U127: 233068321 | V127: 0.2739772313 | W127: 0.2739772313
B128: A | C128: 03 | D128: 04 | E128: 02 | F128: 012 | G128: 002 | J128: LICENCIAS DE MATERNIDAD Y PATERNIDAD (NO DE PENSIONES) | K128: Nación | L128: CSF | M128: 10 | N128: 800000000 | O128: 800000000 | P128: 0 | Q128: 0 | R128: 149138059 | S128: 149138059 | T128: 149138059 | U128: 149138059 | V128: 0.1864225737 | W128: 0.1864225737
B129: A | C129: 08 | J129: GASTOS POR TRIBUTOS, MULTAS, SANCIONES E INTERESES DE MORA | K129: Nación | L129: CSF | M129: 10 | N129: 485000000 | O129: 485000000 | P129: 0 | Q129: 0 | R129: 171934758 | S129: 171934758 | T129: 171934758 | U129: 171934758 | V129: 0.3545046557 | W129: 0.3545046557
B130: A | C130: 08 | J130: GASTOS POR TRIBUTOS, MULTAS, SANCIONES E INTERESES DE MORA | K130: Nación | L130: SSF | M130: 11 | N130: 1881077000 | O130: 0 | P130: 1881077000 | Q130: 0 | R130: 0 | S130: 0 | T130: 0 | U130: 0 | V130: 0 | W130: 0
B131: A | C131: 08 | D131: 01 | J131: IMPUESTOS | K131: Nación | L131: CSF | M131: 10 | N131: 485000000 | O131: 485000000 | P131: 0 | Q131: 0 | R131: 171934758 | S131: 171934758 | T131: 171934758 | U131: 171934758 | V131: 0.3545046557 | W131: 0.3545046557
B132: A | C132: 08 | D132: 01 | E132: 02 | J132: IMPUESTOS TERRITORIALES | K132: Nación | L132: CSF | M132: 10 | N132: 485000000 | O132: 485000000 | P132: 0 | Q132: 0 | R132: 171934758 | S132: 171934758 | T132: 171934758 | U132: 171934758 | V132: 0.3545046557 | W132: 0.3545046557
B133: A | C133: 08 | D133: 01 | E133: 02 | F133: 001 | J133: IMPUESTO PREDIAL Y SOBRETASA AMBIENTAL | K133: Nación | L133: CSF | M133: 10 | N133: 470000000 | O133: 470000000 | P133: 0 | Q133: 0 | R133: 171934758 | S133: 171934758 | T133: 171934758 | U133: 171934758 | V133: 0.365818634 | W133: 0.365818634
B134: A | C134: 08 | D134: 01 | E134: 02 | F134: 006 | J134: IMPUESTO SOBRE VEHÍCULOS AUTOMOTORES | K134: Nación | L134: CSF | M134: 10 | N134: 15000000 | O134: 15000000 | P134: 0 | Q134: 0 | R134: 0 | S134: 0 | T134: 0 | U134: 0 | V134: 0 | W134: 0
B135: A | C135: 08 | D135: 04 | J135: CONTRIBUCIONES | K135: Nación | L135: SSF | M135: 11 | N135: 1881077000 | O135: 0 | P135: 1881077000 | Q135: 0 | R135: 0 | S135: 0 | T135: 0 | U135: 0 | V135: 0 | W135: 0
B136: A | C136: 08 | D136: 04 | E136: 01 | J136: CUOTA DE FISCALIZACIÓN Y AUDITAJE | K136: Nación | L136: SSF | M136: 11 | N136: 1881077000 | O136: 0 | P136: 1881077000 | Q136: 0 | R136: 0 | S136: 0 | T136: 0 | U136: 0 | V136: 0 | W136: 0
B137: B | J137: SERVICIO DE LA DEUDA PÚBLICA | K137: Nación | L137: CSF | M137: 11 | N137: 247291740 | O137: 0 | P137: 247291740 | Q137: 0 | R137: 0 | S137: 0 | T137: 0 | U137: 0 | V137: 0 | W137: 0
B138: B | C138: 10 | J138: SERVICIO DE LA DEUDA PÚBLICA INTERNA | K138: Nación | L138: CSF | M138: 11 | N138: 247291740 | O138: 0 | P138: 247291740 | Q138: 0 | R138: 0 | S138: 0 | T138: 0 | U138: 0 | V138: 0 | W138: 0
B139: B | C139: 10 | D139: 04 | J139: FONDO DE CONTINGENCIAS | K139: Nación | L139: CSF | M139: 11 | N139: 247291740 | O139: 0 | P139: 247291740 | Q139: 0 | R139: 0 | S139: 0 | T139: 0 | U139: 0 | V139: 0 | W139: 0
B140: B | C140: 10 | D140: 04 | E140: 01 | J140: APORTES AL FONDO DE CONTINGENCIAS | K140: Nación | L140: CSF | M140: 11 | N140: 247291740 | O140: 0 | P140: 247291740 | Q140: 0 | R140: 0 | S140: 0 | T140: 0 | U140: 0 | V140: 0 | W140: 0
B141: C | J141: INVERSION | K141: Nación | L141: CSF | M141: 11 | N141: 20000000000 | O141: 14366882821 | P141: 5633117179 | Q141: 0 | R141: 10657846831 | S141: 1078766625 | T141: 1078166625 | U141: 1069468190 | V141: 0.5328923415 | W141: 0.05393833126
B142: C | J142: INVERSION | K142: Nación | L142: CSF | M142: 13 | N142: 37735679763 | O142: 24118985899 | P142: 13616693864 | Q142: 0 | R142: 16308383947 | S142: 1639998999 | T142: 1626423541 | U142: 1540145438 | V142: 0.4321741134 | W142: 0.04346016844
B143: C | J143: INVERSION | K143: Nación | L143: CSF | M143: 15 | N143: 2640000000 | O143: 812977986 | P143: 1827022014 | Q143: 0 | R143: 619650188 | S143: 0 | T143: 0 | U143: 0 | V143: 0.2347159803 | W143: 0
B144: C | C144: 2502 | J144: PROMOCIÓN, PROTECCIÓN Y DEFENSA DE LOS DERECHOS HUMANOS Y EL DERECHO INTERNACIONAL HUMANITARIO | K144: Nación | L144: CSF | M144: 11 | N144: 15500000000 | O144: 13749982821 | P144: 1750017179 | Q144: 0 | R144: 10449346831 | S144: 1071266625 | T144: 1070666625 | U144: 1061968190 | V144: 0.6741514085 | W144: 0.06911397581
B145: C | C145: 2502 | J145: PROMOCIÓN, PROTECCIÓN Y DEFENSA DE LOS DERECHOS HUMANOS Y EL DERECHO INTERNACIONAL HUMANITARIO | K145: Nación | L145: CSF | M145: 13 | N145: 26019181301 | O145: 23849844827 | P145: 2169336474 | Q145: 0 | R145: 16308383947 | S145: 1639998999 | T145: 1626423541 | U145: 1540145438 | V145: 0.626783132 | W145: 0.06303038438
B146: C | C146: 2502 | J146: PROMOCIÓN, PROTECCIÓN Y DEFENSA DE LOS DERECHOS HUMANOS Y EL DERECHO INTERNACIONAL HUMANITARIO | K146: Nación | L146: CSF | M146: 15 | N146: 2640000000 | O146: 812977986 | P146: 1827022014 | Q146: 0 | R146: 619650188 | S146: 0 | T146: 0 | U146: 0 | V146: 0.2347159803 | W146: 0
B147: C | C147: 2502 | D147: 1000 | J147: INTERSUBSECTORIAL GOBIERNO | K147: Nación | L147: CSF | M147: 11 | N147: 15500000000 | O147: 13749982821 | P147: 1750017179 | Q147: 0 | R147: 10449346831 | S147: 1071266625 | T147: 1070666625 | U147: 1061968190 | V147: 0.6741514085 | W147: 0.06911397581
B148: C | C148: 2502 | D148: 1000 | J148: INTERSUBSECTORIAL GOBIERNO | K148: Nación | L148: CSF | M148: 13 | N148: 26019181301 | O148: 23849844827 | P148: 2169336474 | Q148: 0 | R148: 16308383947 | S148: 1639998999 | T148: 1626423541 | U148: 1540145438 | V148: 0.626783132 | W148: 0.06303038438
B149: C | C149: 2502 | D149: 1000 | J149: INTERSUBSECTORIAL GOBIERNO | K149: Nación | L149: CSF | M149: 15 | N149: 2640000000 | O149: 812977986 | P149: 1827022014 | Q149: 0 | R149: 619650188 | S149: 0 | T149: 0 | U149: 0 | V149: 0.2347159803 | W149: 0
B150: C | C150: 2502 | D150: 1000 | E150: 25 | J150: FORTALECIMIENTO DE LA ATENCIÓN, PROMOCIÓN, DIVULGACIÓN, PROTECCIÓN Y DEFENSA DE DERECHOS HUMANOS A LA POBLACIÓN Y GRUPOS DE INTERÉS EN EL TERRITORIO NACIONAL NACIONAL | K150: Nación | L150: CSF | M150: 11 | N150: 10500000000 | O150: 10220199998 | P150: 279800002 | Q150: 0 | R150: 7703538819 | S150: 939188447.1 | T150: 938588447.1 | U150: 930586597.1 | V150: 0.7336703637 | W150: 0.08944651877
B151: C | C151: 2502 | D151: 1000 | E151: 25 | J151: FORTALECIMIENTO DE LA ATENCIÓN, PROMOCIÓN, DIVULGACIÓN, PROTECCIÓN Y DEFENSA DE DERECHOS HUMANOS A LA POBLACIÓN Y GRUPOS DE INTERÉS EN EL TERRITORIO NACIONAL NACIONAL | K151: Nación | L151: CSF | M151: 13 | N151: 10500000000 | O151: 9746042252 | P151: 753957748 | Q151: 0 | R151: 6171743321 | S151: 485682589.8 | T151: 485682589.8 | U151: 455059850.8 | V151: 0.5877850782 | W151: 0.04625548474
B152: C | C152: 2502 | D152: 1000 | E152: 25 | J152: FORTALECIMIENTO DE LA ATENCIÓN, PROMOCIÓN, DIVULGACIÓN, PROTECCIÓN Y DEFENSA DE DERECHOS HUMANOS A LA POBLACIÓN Y GRUPOS DE INTERÉS EN EL TERRITORIO NACIONAL NACIONAL | K152: Nación | L152: CSF | M152: 15 | N152: 2640000000 | O152: 812977986 | P152: 1827022014 | Q152: 0 | R152: 619650188 | S152: 0 | T152: 0 | U152: 0 | V152: 0.2347159803 | W152: 0
B153: C | C153: 2502 | D153: 1000 | E153: 25 | F153: 0 | G153: 2502002 | J153: SERVICIO DE ASISTENCIA TÉCNICA PARA ATENCIÓN, ORIENTACIÓN Y ASESORÍA EN MATERIA DE DERECHOS HUMANOS, EL DERECHO INTERNACIONAL HUMANITARIO Y EN ESCENARIOS DE PAZ | K153: Nación | L153: CSF | M153: 11 | N153: 4335026770 | O153: 4160726770 | P153: 174300000.5 | Q153: 0 | R153: 2490889337 | S153: 328713888.9 | T153: 328713888.9 | U153: 323383976.9 | V153: 0.574596068 | W153: 0.07582741844
B154: C | C154: 2502 | D154: 1000 | E154: 25 | F154: 0 | G154: 2502003 | J154: SERVICIO DE EDUCACIÓN INFORMAL EN MATERIA DE DERECHOS HUMANOS Y DERECHO INTERNACIONAL HUMANITARIO | K154: Nación | L154: CSF | M154: 11 | N154: 1796418873 | O154: 1796418873 | P154: 0.48 | Q154: 0 | R154: 1423342051 | S154: 128786790 | T154: 128786790 | U154: 126114852 | V154: 0.79232192 | W154: 0.07169084666
B155: C | C155: 2502 | D155: 1000 | E155: 25 | F155: 0 | G155: 2502004 | J155: SERVICIO DE DIVULGACIÓN DE LOS DERECHOS HUMANOS Y DEL DERECHO INTERNACIONAL HUMANITARIO DE LA POBLACIÓN | K155: Nación | L155: CSF | M155: 11 | N155: 655805936.2 | O155: 655805936 | P155: 0.17 | Q155: 0 | R155: 618805936 | S155: 67983331.01 | T155: 67983331.01 | U155: 67983331.01 | V155: 0.9435808703 | W155: 0.1036637933
B156: C | C156: 2502 | D156: 1000 | E156: 25 | F156: 0 | G156: 2502011 | J156: DOCUMENTOS DE SEGUIMIENTO | K156: Nación | L156: CSF | M156: 11 | N156: 2927069486 | O156: 2821569485 | P156: 105500000.8 | Q156: 0 | R156: 2486501495 | S156: 343464438 | T156: 342864438 | U156: 342864438 | V156: 0.8494849565 | W156: 0.117340719
B157: C | C157: 2502 | D157: 1000 | E157: 25 | F157: 0 | G157: 2502006 | J157: DOCUMENTOS DE INVESTIGACIÓN | K157: Nación | L157: CSF | M157: 11 | N157: 785678934 | O157: 785678934 | P157: 0.01 | Q157: 0 | R157: 684000000 | S157: 70239999.26 | T157: 70239999.26 | U157: 70239999.26 | V157: 0.8705846248 | W157: 0.08940038509
B158: C | C158: 2502 | D158: 1000 | E158: 25 | F158: 0 | G158: 2502006 | J158: DOCUMENTOS DE INVESTIGACIÓN | K158: Nación | L158: CSF | M158: 13 | N158: 1285678934 | O158: 1260678934 | P158: 25000000.01 | Q158: 0 | R158: 775555581 | S158: 93286508 | T158: 93286508 | U158: 91743815 | V158: 0.6032264825 | W158: 0.07255816793
B159: C | C159: 2502 | D159: 1000 | E159: 25 | F159: 0 | G159: 2502011 | J159: DOCUMENTOS DE SEGUIMIENTO | K159: Nación | L159: CSF | M159: 13 | N159: 2927069486 | O159: 2805569485 | P159: 121500000.8 | Q159: 0 | R159: 1664738688 | S159: 187740699.8 | T159: 187740699.8 | U159: 163956985.8 | V159: 0.5687390395 | W159: 0.06413947488
B160: C | C160: 2502 | D160: 1000 | E160: 25 | F160: 0 | G160: 2502004 | J160: SERVICIO DE DIVULGACIÓN DE LOS DERECHOS HUMANOS Y DEL DERECHO INTERNACIONAL HUMANITARIO DE LA POBLACIÓN | K160: Nación | L160: CSF | M160: 13 | N160: 655805936.2 | O160: 649508936 | P160: 6297000.17 | Q160: 0 | R160: 450216601 | S160: 30800000 | T160: 30800000 | U160: 30800000 | V160: 0.6865088835 | W160: 0.04696511316
B161: C | C161: 2502 | D161: 1000 | E161: 25 | F161: 0 | G161: 2502003 | J161: SERVICIO DE EDUCACIÓN INFORMAL EN MATERIA DE DERECHOS HUMANOS Y DERECHO INTERNACIONAL HUMANITARIO | K161: Nación | L161: CSF | M161: 13 | N161: 1796418873 | O161: 1794918873 | P161: 1500000.48 | Q161: 0 | R161: 1206057538 | S161: 49627982 | T161: 49627982 | U161: 45177758 | V161: 0.6713676614 | W161: 0.02762606357
B162: C | C162: 2502 | D162: 1000 | E162: 25 | F162: 0 | G162: 2502002 | J162: SERVICIO DE ASISTENCIA TÉCNICA PARA ATENCIÓN, ORIENTACIÓN Y ASESORÍA EN MATERIA DE DERECHOS HUMANOS, EL DERECHO INTERNACIONAL HUMANITARIO Y EN ESCENARIOS DE PAZ | K162: Nación | L162: CSF | M162: 13 | N162: 3835026770 | O162: 3235366024 | P162: 599660746.5 | Q162: 0 | R162: 2075174913 | S162: 124227400 | T162: 124227400 | U162: 123381292 | V162: 0.5411109328 | W162: 0.03239283776
B163: C | C163: 2502 | D163: 1000 | E163: 25 | F163: 0 | G163: 2502002 | J163: SERVICIO DE ASISTENCIA TÉCNICA PARA ATENCIÓN, ORIENTACIÓN Y ASESORÍA EN MATERIA DE DERECHOS HUMANOS, EL DERECHO INTERNACIONAL HUMANITARIO Y EN ESCENARIOS DE PAZ | K163: Nación | L163: CSF | M163: 15 | N163: 289949588 | O163: 0 | P163: 289949588 | Q163: 0 | R163: 0 | S163: 0 | T163: 0 | U163: 0 | V163: =R163/N163 -> 0 | W163: =S163/N163 -> 0
B164: C | C164: 2502 | D164: 1000 | E164: 25 | F164: 0 | G164: 2502003 | J164: SERVICIO DE EDUCACIÓN INFORMAL EN MATERIA DE DERECHOS HUMANOS Y DERECHO INTERNACIONAL HUMANITARIO | K164: Nación | L164: CSF | M164: 15 | N164: 871671031 | O164: 469573174 | P164: 402097857.1 | Q164: 0 | R164: 459033909 | S164: 0 | T164: 0 | U164: 0 | V164: 0.5266137025 | W164: 0
B165: C | C165: 2502 | D165: 1000 | E165: 25 | F165: 0 | G165: 2502004 | J165: SERVICIO DE DIVULGACIÓN DE LOS DERECHOS HUMANOS Y DEL DERECHO INTERNACIONAL HUMANITARIO DE LA POBLACIÓN | K165: Nación | L165: CSF | M165: 15 | N165: 564888349.7 | O165: 146616279 | P165: 418272070.7 | Q165: 0 | R165: 143616279 | S165: 0 | T165: 0 | U165: 0 | V165: 0.2542383448 | W165: 0
B166: C | C166: 2502 | D166: 1000 | E166: 25 | F166: 0 | G166: 2502011 | J166: DOCUMENTOS DE SEGUIMIENTO | K166: Nación | L166: CSF | M166: 15 | N166: 715948899.3 | O166: 22698901 | P166: 693249998.3 | Q166: 0 | R166: 0 | S166: 0 | T166: 0 | U166: 0 | V166: 0 | W166: 0
B167: C | C167: 2502 | D167: 1000 | E167: 25 | F167: 0 | G167: 2502006 | J167: DOCUMENTOS DE INVESTIGACIÓN | K167: Nación | L167: CSF | M167: 15 | N167: 197542132 | O167: 174089632 | P167: 23452499.98 | Q167: 0 | R167: 17000000 | S167: 0 | T167: 0 | U167: 0 | V167: 0.086057591 | W167: 0
B168: C | C168: 2502 | D168: 1000 | E168: 25 | F168: 0 | G168: 2502002 | H168: 02 | J168: ADQUISICIÓN DE BIENES Y SERVICIOS - SERVICIO DE ASISTENCIA TÉCNICA PARA ATENCIÓN, ORIENTACIÓN Y ASESORÍA EN MATERIA DE DERECHOS HUMANOS, EL DERECHO INTERNACIONAL HUMANITARIO Y EN ESCENARIOS DE PAZ - FORTALECIMIENTO DE LA ATENCIÓN, PROMOCIÓN, DIVULGAC | K168: Nación | L168: CSF | M168: 11 | N168: 4335026770 | O168: 4160726770 | P168: 174300000.5 | Q168: 0 | R168: 2490889337 | S168: 328713888.9 | T168: 328713888.9 | U168: 323383976.9 | V168: 0.574596068 | W168: 0.07582741844
B169: C | C169: 2502 | D169: 1000 | E169: 25 | F169: 0 | G169: 2502011 | H169: 02 | J169: ADQUISICIÓN DE BIENES Y SERVICIOS - DOCUMENTOS DE SEGUIMIENTO - FORTALECIMIENTO DE LA ATENCIÓN, PROMOCIÓN, DIVULGACIÓN, PROTECCIÓN Y DEFENSA DE DERECHOS HUMANOS A LA POBLACIÓN Y GRUPOS DE INTERÉS EN EL TERRITORIO NACIONAL NACIONAL | K169: Nación | L169: CSF | M169: 11 | N169: 2927069486 | O169: 2821569485 | P169: 105500000.8 | Q169: 0 | R169: 2486501495 | S169: 343464438 | T169: 342864438 | U169: 342864438 | V169: 0.8494849565 | W169: 0.117340719
B170: C | C170: 2502 | D170: 1000 | E170: 25 | F170: 0 | G170: 2502003 | H170: 02 | J170: ADQUISICIÓN DE BIENES Y SERVICIOS - SERVICIO DE EDUCACIÓN INFORMAL EN MATERIA DE DERECHOS HUMANOS Y DERECHO INTERNACIONAL HUMANITARIO - FORTALECIMIENTO DE LA ATENCIÓN, PROMOCIÓN, DIVULGACIÓN, PROTECCIÓN Y DEFENSA DE DERECHOS HUMANOS A LA POBLACIÓN Y | K170: Nación | L170: CSF | M170: 11 | N170: 1796418873 | O170: 1796418873 | P170: 0.48 | Q170: 0 | R170: 1423342051 | S170: 128786790 | T170: 128786790 | U170: 126114852 | V170: 0.79232192 | W170: 0.07169084666
B171: C | C171: 2502 | D171: 1000 | E171: 25 | F171: 0 | G171: 2502004 | H171: 02 | J171: ADQUISICIÓN DE BIENES Y SERVICIOS - SERVICIO DE DIVULGACIÓN DE LOS DERECHOS HUMANOS Y DEL DERECHO INTERNACIONAL HUMANITARIO DE LA POBLACIÓN - FORTALECIMIENTO DE LA ATENCIÓN, PROMOCIÓN, DIVULGACIÓN, PROTECCIÓN Y DEFENSA DE DERECHOS HUMANOS A LA POBLAC | K171: Nación | L171: CSF | M171: 11 | N171: 655805936.2 | O171: 655805936 | P171: 0.17 | Q171: 0 | R171: 618805936 | S171: 67983331.01 | T171: 67983331.01 | U171: 67983331.01 | V171: 0.9435808703 | W171: 0.1036637933
B172: C | C172: 2502 | D172: 1000 | E172: 25 | F172: 0 | G172: 2502006 | H172: 02 | J172: ADQUISICIÓN DE BIENES Y SERVICIOS - DOCUMENTOS DE INVESTIGACIÓN - FORTALECIMIENTO DE LA ATENCIÓN, PROMOCIÓN, DIVULGACIÓN, PROTECCIÓN Y DEFENSA DE DERECHOS HUMANOS A LA POBLACIÓN Y GRUPOS DE INTERÉS EN EL TERRITORIO NACIONAL NACIONAL | K172: Nación | L172: CSF | M172: 11 | N172: 785678934 | O172: 785678934 | P172: 0.01 | Q172: 0 | R172: 684000000 | S172: 70239999.26 | T172: 70239999.26 | U172: 70239999.26 | V172: 0.8705846248 | W172: 0.08940038509
B173: C | C173: 2502 | D173: 1000 | E173: 25 | F173: 0 | G173: 2502006 | H173: 02 | J173: ADQUISICIÓN DE BIENES Y SERVICIOS - DOCUMENTOS DE INVESTIGACIÓN - FORTALECIMIENTO DE LA ATENCIÓN, PROMOCIÓN, DIVULGACIÓN, PROTECCIÓN Y DEFENSA DE DERECHOS HUMANOS A LA POBLACIÓN Y GRUPOS DE INTERÉS EN EL TERRITORIO NACIONAL NACIONAL | K173: Nación | L173: CSF | M173: 13 | N173: 1285678934 | O173: 1260678934 | P173: 25000000.01 | Q173: 0 | R173: 775555581 | S173: 93286508 | T173: 93286508 | U173: 91743815 | V173: 0.6032264825 | W173: 0.07255816793
B174: C | C174: 2502 | D174: 1000 | E174: 25 | F174: 0 | G174: 2502004 | H174: 02 | J174: ADQUISICIÓN DE BIENES Y SERVICIOS - SERVICIO DE DIVULGACIÓN DE LOS DERECHOS HUMANOS Y DEL DERECHO INTERNACIONAL HUMANITARIO DE LA POBLACIÓN - FORTALECIMIENTO DE LA ATENCIÓN, PROMOCIÓN, DIVULGACIÓN, PROTECCIÓN Y DEFENSA DE DERECHOS HUMANOS A LA POBLAC | K174: Nación | L174: CSF | M174: 13 | N174: 655805936.2 | O174: 649508936 | P174: 6297000.17 | Q174: 0 | R174: 450216601 | S174: 30800000 | T174: 30800000 | U174: 30800000 | V174: 0.6865088835 | W174: 0.04696511316
B175: C | C175: 2502 | D175: 1000 | E175: 25 | F175: 0 | G175: 2502003 | H175: 02 | J175: ADQUISICIÓN DE BIENES Y SERVICIOS - SERVICIO DE EDUCACIÓN INFORMAL EN MATERIA DE DERECHOS HUMANOS Y DERECHO INTERNACIONAL HUMANITARIO - FORTALECIMIENTO DE LA ATENCIÓN, PROMOCIÓN, DIVULGACIÓN, PROTECCIÓN Y DEFENSA DE DERECHOS HUMANOS A LA POBLACIÓN Y | K175: Nación | L175: CSF | M175: 13 | N175: 1796418873 | O175: 1794918873 | P175: 1500000.48 | Q175: 0 | R175: 1206057538 | S175: 49627982 | T175: 49627982 | U175: 45177758 | V175: 0.6713676614 | W175: 0.02762606357
B176: C | C176: 2502 | D176: 1000 | E176: 25 | F176: 0 | G176: 2502011 | H176: 02 | J176: ADQUISICIÓN DE BIENES Y SERVICIOS - DOCUMENTOS DE SEGUIMIENTO - FORTALECIMIENTO DE LA ATENCIÓN, PROMOCIÓN, DIVULGACIÓN, PROTECCIÓN Y DEFENSA DE DERECHOS HUMANOS A LA POBLACIÓN Y GRUPOS DE INTERÉS EN EL TERRITORIO NACIONAL NACIONAL | K176: Nación | L176: CSF | M176: 13 | N176: 2927069486 | O176: 2805569485 | P176: 121500000.8 | Q176: 0 | R176: 1664738688 | S176: 187740699.8 | T176: 187740699.8 | U176: 163956985.8 | V176: 0.5687390395 | W176: 0.06413947488
B177: C | C177: 2502 | D177: 1000 | E177: 25 | F177: 0 | G177: 2502002 | H177: 02 | J177: ADQUISICIÓN DE BIENES Y SERVICIOS - SERVICIO DE ASISTENCIA TÉCNICA PARA ATENCIÓN, ORIENTACIÓN Y ASESORÍA EN MATERIA DE DERECHOS HUMANOS, EL DERECHO INTERNACIONAL HUMANITARIO Y EN ESCENARIOS DE PAZ - FORTALECIMIENTO DE LA ATENCIÓN, PROMOCIÓN, DIVULGAC | K177: Nación | L177: CSF | M177: 13 | N177: 3835026770 | O177: 3235366024 | P177: 599660746.5 | Q177: 0 | R177: 2075174913 | S177: 124227400 | T177: 124227400 | U177: 123381292 | V177: 0.5411109328 | W177: 0.03239283776
B178: C | C178: 2502 | D178: 1000 | E178: 25 | F178: 0 | G178: 2502002 | H178: 02 | J178: ADQUISICIÓN DE BIENES Y SERVICIOS - SERVICIO DE ASISTENCIA TÉCNICA PARA ATENCIÓN, ORIENTACIÓN Y ASESORÍA EN MATERIA DE DERECHOS HUMANOS, EL DERECHO INTERNACIONAL HUMANITARIO Y EN ESCENARIOS DE PAZ - FORTALECIMIENTO DE LA ATENCIÓN, PROMOCIÓN, DIVULGAC | K178: Nación | L178: CSF | M178: 15 | N178: 289949588 | O178: 0 | P178: 289949588 | Q178: 0 | R178: 0 | S178: 0 | T178: 0 | U178: 0 | V178: 0 | W178: 0
B179: C | C179: 2502 | D179: 1000 | E179: 25 | F179: 0 | G179: 2502011 | H179: 02 | J179: ADQUISICIÓN DE BIENES Y SERVICIOS - DOCUMENTOS DE SEGUIMIENTO - FORTALECIMIENTO DE LA ATENCIÓN, PROMOCIÓN, DIVULGACIÓN, PROTECCIÓN Y DEFENSA DE DERECHOS HUMANOS A LA POBLACIÓN Y GRUPOS DE INTERÉS EN EL TERRITORIO NACIONAL NACIONAL | K179: Nación | L179: CSF | M179: 15 | N179: 715948899.3 | O179: 22698901 | P179: 693249998.3 | Q179: 0 | R179: 0 | S179: 0 | T179: 0 | U179: 0 | V179: 0 | W179: 0
B180: C | C180: 2502 | D180: 1000 | E180: 25 | F180: 0 | G180: 2502003 | H180: 02 | J180: ADQUISICIÓN DE BIENES Y SERVICIOS - SERVICIO DE EDUCACIÓN INFORMAL EN MATERIA DE DERECHOS HUMANOS Y DERECHO INTERNACIONAL HUMANITARIO - FORTALECIMIENTO DE LA ATENCIÓN, PROMOCIÓN, DIVULGACIÓN, PROTECCIÓN Y DEFENSA DE DERECHOS HUMANOS A LA POBLACIÓN Y | K180: Nación | L180: CSF | M180: 15 | N180: 871671031 | O180: 469573174 | P180: 402097857.1 | Q180: 0 | R180: 459033909 | S180: 0 | T180: 0 | U180: 0 | V180: 0.5266137025 | W180: 0
B181: C | C181: 2502 | D181: 1000 | E181: 25 | F181: 0 | G181: 2502004 | H181: 02 | J181: ADQUISICIÓN DE BIENES Y SERVICIOS - SERVICIO DE DIVULGACIÓN DE LOS DERECHOS HUMANOS Y DEL DERECHO INTERNACIONAL HUMANITARIO DE LA POBLACIÓN - FORTALECIMIENTO DE LA ATENCIÓN, PROMOCIÓN, DIVULGACIÓN, PROTECCIÓN Y DEFENSA DE DERECHOS HUMANOS A LA POBLAC | K181: Nación | L181: CSF | M181: 15 | N181: 564888349.7 | O181: 146616279 | P181: 418272070.7 | Q181: 0 | R181: 143616279 | S181: 0 | T181: 0 | U181: 0 | V181: 0.2542383448 | W181: 0
B182: C | C182: 2502 | D182: 1000 | E182: 25 | F182: 0 | G182: 2502006 | H182: 02 | J182: ADQUISICIÓN DE BIENES Y SERVICIOS - DOCUMENTOS DE INVESTIGACIÓN - FORTALECIMIENTO DE LA ATENCIÓN, PROMOCIÓN, DIVULGACIÓN, PROTECCIÓN Y DEFENSA DE DERECHOS HUMANOS A LA POBLACIÓN Y GRUPOS DE INTERÉS EN EL TERRITORIO NACIONAL NACIONAL | K182: Nación | L182: CSF | M182: 15 | N182: 197542132 | O182: 174089632 | P182: 23452499.98 | Q182: 0 | R182: 17000000 | S182: 0 | T182: 0 | U182: 0 | V182: 0.086057591 | W182: 0
B183: C | C183: 2502 | D183: 1000 | E183: 25 | F183: 0 | J183: FORTALECIMIENTO DE LA ATENCIÓN, PROMOCIÓN, DIVULGACIÓN, PROTECCIÓN Y DEFENSA DE DERECHOS HUMANOS A LA POBLACIÓN Y GRUPOS DE INTERÉS EN EL TERRITORIO NACIONAL NACIONAL | K183: Nación | L183: CSF | M183: 11 | N183: 10500000000 | O183: 10220199998 | P183: 279800002 | Q183: 0 | R183: 7703538819 | S183: 939188447.1 | T183: 938588447.1 | U183: 930586597.1 | V183: 0.7336703637 | W183: 0.08944651877
B184: C | C184: 2502 | D184: 1000 | E184: 25 | F184: 0 | J184: FORTALECIMIENTO DE LA ATENCIÓN, PROMOCIÓN, DIVULGACIÓN, PROTECCIÓN Y DEFENSA DE DERECHOS HUMANOS A LA POBLACIÓN Y GRUPOS DE INTERÉS EN EL TERRITORIO NACIONAL NACIONAL | K184: Nación | L184: CSF | M184: 13 | N184: 10500000000 | O184: 9746042252 | P184: 753957748 | Q184: 0 | R184: 6171743321 | S184: 485682589.8 | T184: 485682589.8 | U184: 455059850.8 | V184: 0.5877850782 | W184: 0.04625548474
B185: C | C185: 2502 | D185: 1000 | E185: 25 | F185: 0 | J185: FORTALECIMIENTO DE LA ATENCIÓN, PROMOCIÓN, DIVULGACIÓN, PROTECCIÓN Y DEFENSA DE DERECHOS HUMANOS A LA POBLACIÓN Y GRUPOS DE INTERÉS EN EL TERRITORIO NACIONAL NACIONAL | K185: Nación | L185: CSF | M185: 15 | N185: 2640000000 | O185: 812977986 | P185: 1827022014 | Q185: 0 | R185: 619650188 | S185: 0 | T185: 0 | U185: 0 | V185: 0.2347159803 | W185: 0
B186: C | C186: 2502 | D186: 1000 | E186: 27 | F186: 0 | J186: CONTRIBUCION EN LA CONSTRUCCION DE CIUDADANIA DE LA VICTIMAS DEL CONFLICTO ARMADO NACIONAL | K186: Nación | L186: CSF | M186: 11 | N186: 5000000000 | O186: 3529782823 | P186: 1470217177 | Q186: 0 | R186: 2745808012 | S186: 132078178 | T186: 132078178 | U186: 131381593 | V186: 0.5491616024 | W186: 0.0264156356
B187: C | C187: 2502 | D187: 1000 | E187: 27 | F187: 0 | G187: 2502001 | J187: SERVICIO DE ADVERTENCIA Y SEGUIMIENTO A LOS RIESGOS DE VULNERACIÓN DE LOS DERECHOS HUMANOS, EL DERECHO INTERNACIONAL HUMANITARIO Y EN LOS ESCENARIOS DE PAZ | K187: Nación | L187: CSF | M187: 11 | N187: 1699633877 | O187: 891448416 | P187: 808185461.4 | Q187: 0 | R187: 487706534 | S187: 58972599 | T187: 58972599 | U187: 58972599 | V187: 0.2869479954 | W187: 0.03469723673
B188: C | C188: 2502 | D188: 1000 | E188: 27 | F188: 0 | G188: 2502002 | J188: SERVICIO DE ASISTENCIA TÉCNICA PARA ATENCIÓN, ORIENTACIÓN Y ASESORÍA EN MATERIA DE DERECHOS HUMANOS, EL DERECHO INTERNACIONAL HUMANITARIO Y EN ESCENARIOS DE PAZ | K188: Nación | L188: CSF | M188: 11 | N188: 2196579406 | O188: 2128239406 | P188: 68340000.3 | Q188: 0 | R188: 1875136475 | S188: 43832327 | T188: 43832327 | U188: 43135742 | V188: 0.8536620482 | W188: 0.01995481105
B189: C | C189: 2502 | D189: 1000 | E189: 27 | F189: 0 | G189: 2502003 | J189: SERVICIO DE EDUCACIÓN INFORMAL EN MATERIA DE DERECHOS HUMANOS Y DERECHO INTERNACIONAL HUMANITARIO | K189: Nación | L189: CSF | M189: 11 | N189: 1103786716 | O189: 510095001 | P189: 593691715.3 | Q189: 0 | R189: 382965003 | S189: 29273252 | T189: 29273252 | U189: 29273252 | V189: 0.3469556186 | W189: 0.0265207504
B190: C | C190: 2502 | D190: 1000 | E190: 27 | F190: 0 | G190: 2502003 | J190: SERVICIO DE EDUCACIÓN INFORMAL EN MATERIA DE DERECHOS HUMANOS Y DERECHO INTERNACIONAL HUMANITARIO | K190: Nación | L190: CSF | M190: 13 | N190: 3425973234 | O190: 2911415739 | P190: 514557494.7 | Q190: 0 | R190: 1746242052 | S190: 133683684 | T190: 132366732 | U190: 122984980 | V190: 0.5097068578 | W190: 0.03902064461
B191: C | C191: 2502 | D191: 1000 | E191: 27 | F191: 0 | G191: 2502002 | J191: SERVICIO DE ASISTENCIA TÉCNICA PARA ATENCIÓN, ORIENTACIÓN Y ASESORÍA EN MATERIA DE DERECHOS HUMANOS, EL DERECHO INTERNACIONAL HUMANITARIO Y EN ESCENARIOS DE PAZ | K191: Nación | L191: CSF | M191: 13 | N191: 6817822810 | O191: 6022867699 | P191: 794955110.7 | Q191: 0 | R191: 4536688734 | S191: 549027710 | T191: 540820165 | U191: 512230134 | V191: 0.6654160515 | W191: 0.08052830432
B192: C | C192: 2502 | D192: 1000 | E192: 27 | F192: 0 | G192: 2502001 | J192: SERVICIO DE ADVERTENCIA Y SEGUIMIENTO A LOS RIESGOS DE VULNERACIÓN DE LOS DERECHOS HUMANOS, EL DERECHO INTERNACIONAL HUMANITARIO Y EN LOS ESCENARIOS DE PAZ | K192: Nación | L192: CSF | M192: 13 | N192: 5275385258 | O192: 5169519137 | P192: 105866120.6 | Q192: 0 | R192: 3853709840 | S192: 471605015 | T192: 467554054 | U192: 449870473 | V192: 0.7305077548 | W192: 0.08939726522
B193: C | C193: 2502 | D193: 1000 | E193: 27 | F193: 0 | J193: CONTRIBUCION EN LA CONSTRUCCION DE CIUDADANIA DE LA VICTIMAS DEL CONFLICTO ARMADO NACIONAL | K193: Nación | L193: CSF | M193: 13 | N193: 15519181301 | O193: 14103802575 | P193: 1415378726 | Q193: 0 | R193: 10136640626 | S193: 1154316409 | T193: 1140740951 | U193: 1085085587 | V193: 0.6531685164 | W193: 0.07437998092
B194: C | C194: 2502 | D194: 1000 | E194: 27 | F194: 0 | G194: 2502001 | H194: 02 | J194: ADQUISICIÓN DE BIENES Y SERVICIOS - SERVICIO DE ADVERTENCIA Y SEGUIMIENTO A LOS RIESGOS DE VULNERACIÓN DE LOS DERECHOS HUMANOS, EL DERECHO INTERNACIONAL HUMANITARIO Y EN LOS ESCENARIOS DE PAZ - CONTRIBUCION EN LA CONSTRUCCION DE CIUDADANIA DE LA VI | K194: Nación | L194: CSF | M194: 11 | N194: 1699633877 | O194: 891448416 | P194: 808185461.4 | Q194: 0 | R194: 487706534 | S194: 58972599 | T194: 58972599 | U194: 58972599 | V194: 0.2869479954 | W194: 0.03469723673
B195: C | C195: 2502 | D195: 1000 | E195: 27 | F195: 0 | G195: 2502003 | H195: 02 | J195: ADQUISICIÓN DE BIENES Y SERVICIOS - SERVICIO DE EDUCACIÓN INFORMAL EN MATERIA DE DERECHOS HUMANOS Y DERECHO INTERNACIONAL HUMANITARIO - CONTRIBUCION EN LA CONSTRUCCION DE CIUDADANIA DE LA VICTIMAS DEL CONFLICTO ARMADO NACIONAL | K195: Nación | L195: CSF | M195: 11 | N195: 1103786716 | O195: 510095001 | P195: 593691715.3 | Q195: 0 | R195: 382965003 | S195: 29273252 | T195: 29273252 | U195: 29273252 | V195: 0.3469556186 | W195: 0.0265207504
B196: C | C196: 2502 | D196: 1000 | E196: 27 | F196: 0 | G196: 2502002 | H196: 02 | J196: ADQUISICIÓN DE BIENES Y SERVICIOS - SERVICIO DE ASISTENCIA TÉCNICA PARA ATENCIÓN, ORIENTACIÓN Y ASESORÍA EN MATERIA DE DERECHOS HUMANOS, EL DERECHO INTERNACIONAL HUMANITARIO Y EN ESCENARIOS DE PAZ - CONTRIBUCION EN LA CONSTRUCCION DE CIUDADANIA DE | K196: Nación | L196: CSF | M196: 11 | N196: 2196579406 | O196: 2128239406 | P196: 68340000.3 | Q196: 0 | R196: 1875136475 | S196: 43832327 | T196: 43832327 | U196: 43135742 | V196: 0.8536620482 | W196: 0.01995481105
B197: C | C197: 2502 | D197: 1000 | E197: 27 | F197: 0 | G197: 2502002 | H197: 02 | J197: ADQUISICIÓN DE BIENES Y SERVICIOS - SERVICIO DE ASISTENCIA TÉCNICA PARA ATENCIÓN, ORIENTACIÓN Y ASESORÍA EN MATERIA DE DERECHOS HUMANOS, EL DERECHO INTERNACIONAL HUMANITARIO Y EN ESCENARIOS DE PAZ - CONTRIBUCION EN LA CONSTRUCCION DE CIUDADANIA DE | K197: Nación | L197: CSF | M197: 13 | N197: 6817822810 | O197: 6022867699 | P197: 794955110.7 | Q197: 0 | R197: 4536688734 | S197: 549027710 | T197: 540820165 | U197: 512230134 | V197: 0.6654160515 | W197: 0.08052830432
B198: C | C198: 2502 | D198: 1000 | E198: 27 | F198: 0 | G198: 2502003 | H198: 02 | J198: ADQUISICIÓN DE BIENES Y SERVICIOS - SERVICIO DE EDUCACIÓN INFORMAL EN MATERIA DE DERECHOS HUMANOS Y DERECHO INTERNACIONAL HUMANITARIO - CONTRIBUCION EN LA CONSTRUCCION DE CIUDADANIA DE LA VICTIMAS DEL CONFLICTO ARMADO NACIONAL | K198: Nación | L198: CSF | M198: 13 | N198: 3425973234 | O198: 2911415739 | P198: 514557494.7 | Q198: 0 | R198: 1746242052 | S198: 133683684 | T198: 132366732 | U198: 122984980 | V198: 0.5097068578 | W198: 0.03902064461
B199: C | C199: 2502 | D199: 1000 | E199: 27 | F199: 0 | G199: 2502001 | H199: 02 | J199: ADQUISICIÓN DE BIENES Y SERVICIOS - SERVICIO DE ADVERTENCIA Y SEGUIMIENTO A LOS RIESGOS DE VULNERACIÓN DE LOS DERECHOS HUMANOS, EL DERECHO INTERNACIONAL HUMANITARIO Y EN LOS ESCENARIOS DE PAZ - CONTRIBUCION EN LA CONSTRUCCION DE CIUDADANIA DE LA VI | K199: Nación | L199: CSF | M199: 13 | N199: 5275385258 | O199: 5169519137 | P199: 105866120.6 | Q199: 0 | R199: 3853709840 | S199: 471605015 | T199: 467554054 | U199: 449870473 | V199: 0.7305077548 | W199: 0.08939726522
B200: C | C200: 2502 | D200: 1000 | E200: 27 | J200: CONTRIBUCION EN LA CONSTRUCCION DE CIUDADANIA DE LA VICTIMAS DEL CONFLICTO ARMADO NACIONAL | K200: Nación | L200: CSF | M200: 11 | N200: 5000000000 | O200: 3529782823 | P200: 1470217177 | Q200: 0 | R200: 2745808012 | S200: 132078178 | T200: 132078178 | U200: 131381593 | V200: 0.5491616024 | W200: 0.0264156356
B201: C | C201: 2502 | D201: 1000 | E201: 27 | J201: CONTRIBUCION EN LA CONSTRUCCION DE CIUDADANIA DE LA VICTIMAS DEL CONFLICTO ARMADO NACIONAL | K201: Nación | L201: CSF | M201: 13 | N201: 15519181301 | O201: 14103802575 | P201: 1415378726 | Q201: 0 | R201: 10136640626 | S201: 1154316409 | T201: 1140740951 | U201: 1085085587 | V201: 0.6531685164 | W201: 0.07437998092
B202: C | C202: 2599 | J202: FORTALECIMIENTO DE LA GESTIÓN Y DIRECCIÓN DEL SECTOR ORGANISMOS DE CONTROL | K202: Nación | L202: CSF | M202: 11 | N202: 4500000000 | O202: 616900000 | P202: 3883100000 | Q202: 0 | R202: 208500000 | S202: 7500000 | T202: 7500000 | U202: 7500000 | V202: 0.04633333333 | W202: 0.001666666667
B203: C | C203: 2599 | J203: FORTALECIMIENTO DE LA GESTIÓN Y DIRECCIÓN DEL SECTOR ORGANISMOS DE CONTROL | K203: Nación | L203: CSF | M203: 13 | N203: 11716498462 | O203: 269141072 | P203: 11447357390 | Q203: 0 | R203: 0 | S203: 0 | T203: 0 | U203: 0 | V203: 0 | W203: 0
B204: C | C204: 2599 | D204: 1000 | J204: INTERSUBSECTORIAL GOBIERNO | K204: Nación | L204: CSF | M204: 11 | N204: 4500000000 | O204: 616900000 | P204: 3883100000 | Q204: 0 | R204: 208500000 | S204: 7500000 | T204: 7500000 | U204: 7500000 | V204: 0.04633333333 | W204: 0.001666666667
B205: C | C205: 2599 | D205: 1000 | J205: INTERSUBSECTORIAL GOBIERNO | K205: Nación | L205: CSF | M205: 13 | N205: 11716498462 | O205: 269141072 | P205: 11447357390 | Q205: 0 | R205: 0 | S205: 0 | T205: 0 | U205: 0 | V205: 0 | W205: 0
B206: C | C206: 2599 | D206: 1000 | E206: 7 | J206: ADECUACIÓN DE LAS CONDICIONES FÍSICAS APROPIADAS PARA EL FUNCIONAMIENTO DE LAS DEFENSORÍAS DEL PUEBLO A NIVEL REGIONAL NACIONAL | K206: Nación | L206: CSF | M206: 13 | N206: 10000000000 | O206: 269141072 | P206: 9730858928 | Q206: 0 | R206: 0 | S206: 0 | T206: 0 | U206: 0 | V206: 0 | W206: 0
B207: C | C207: 2599 | D207: 1000 | E207: 7 | F207: 0 | J207: ADECUACIÓN DE LAS CONDICIONES FÍSICAS APROPIADAS PARA EL FUNCIONAMIENTO DE LAS DEFENSORÍAS DEL PUEBLO A NIVEL REGIONAL NACIONAL | K207: Nación | L207: CSF | M207: 13 | N207: 10000000000 | O207: 269141072 | P207: 9730858928 | Q207: 0 | R207: 0 | S207: 0 | T207: 0 | U207: 0 | V207: 0 | W207: 0
... 46 more rows
